[Event "Titled Tuesday Blitz July 26 Early 2022"]
[White "Pakleza, Zbigniew"]
[Black "Kupervaser, Erez"]
[WhiteFideId "1119290"]
[BlackFideId "2814587"]
[WhiteElo "2467"]
[BlackElo "1832"]
[Result "1-0"]
[Round "11"]
[TimeControl "180+1"]
[Date "2022.07.26"]
[WhiteClock "0:00:06"]
[BlackClock "0:00:09"]

1. d4 {[%clk 0:03:00]}  d5 {[%clk 0:02:58]} 2. Bf4 {[%clk 0:02:58]}  Nf6 {[%clk 0:02:58]} 3. e3 {[%clk 0:02:59]}  e6 {[%clk 0:02:58]} 4. Nd2 {[%clk 0:02:56]}  Bd6 {[%clk 0:02:59]} 5. Bg3 {[%clk 0:02:56]}  O-O {[%clk 0:02:59]} 6. Ngf3 {[%clk 0:02:55]}  c5 {[%clk 0:02:59]} 7. c3 {[%clk 0:02:56]}  Qc7 {[%clk 0:02:58]} 8. Ne5 {[%clk 0:02:55]}  Nc6 {[%clk 0:02:53]} 9. f4 {[%clk 0:02:54]}  b6 {[%clk 0:02:49]} 10. Bd3 {[%clk 0:02:53]}  a5 {[%clk 0:02:48]} 11. Qe2 {[%clk 0:02:51]}  a4 {[%clk 0:02:27]} 12. a3 {[%clk 0:02:51]}  cxd4 {[%clk 0:02:25]} 13. exd4 {[%clk 0:02:50]}  Na5 {[%clk 0:02:26]} 14. O-O {[%clk 0:02:45]}  g6 {[%clk 0:01:56]} 15. Rae1 {[%clk 0:02:37]}  Nh5 {[%clk 0:01:54]} 16. Bb5 {[%clk 0:02:21]}  f6 {[%clk 0:01:27]} 17. Nd3 {[%clk 0:02:07]}  Nc4 {[%clk 0:01:27]} 18. Nxc4 {[%clk 0:01:58]}  dxc4 {[%clk 0:01:27]} 19. Nb4 {[%clk 0:01:58]}  Nxf4 {[%clk 0:01:23]} 20. Qxc4 {[%clk 0:01:26]}  Nh3+ {[%clk 0:00:58]} 21. gxh3 {[%clk 0:00:51]}  Bxg3 {[%clk 0:00:58]} 22. Re2 {[%clk 0:00:42]}  Bd6 {[%clk 0:00:47]} 23. Qxc7 {[%clk 0:00:38]}  Bxc7 {[%clk 0:00:47]} 24. Bc4 {[%clk 0:00:34]}  Kf7 {[%clk 0:00:40]} 25. Rfe1 {[%clk 0:00:33]}  Re8 {[%clk 0:00:33]} 26. d5 {[%clk 0:00:33]}  Be5 {[%clk 0:00:25]} 27. Nc6 {[%clk 0:00:20]}  exd5 {[%clk 0:00:25]} 28. Bxd5+ {[%clk 0:00:19]}  Be6 {[%clk 0:00:25]} 29. Nxe5+ {[%clk 0:00:19]}  fxe5 {[%clk 0:00:25]} 30. Bxa8 {[%clk 0:00:20]}  Rxa8 {[%clk 0:00:23]} 31. Rxe5 {[%clk 0:00:20]}  Bf5 {[%clk 0:00:22]} 32. Rb5 {[%clk 0:00:18]}  Rd8 {[%clk 0:00:20]} 33. Rxb6 {[%clk 0:00:12]}  Rd2 {[%clk 0:00:20]} 34. h4 {[%clk 0:00:11]}  h5 {[%clk 0:00:19]} 35. Rc1 {[%clk 0:00:08]}  Be4 {[%clk 0:00:19]} 36. Rb4 {[%clk 0:00:06]}  Bd5 {[%clk 0:00:17]} 37. c4 {[%clk 0:00:06]}  Bc6 {[%clk 0:00:17]} 38. Rb6 {[%clk 0:00:06]}  Be4 {[%clk 0:00:15]} 39. Rf1+ {[%clk 0:00:05]}  Ke7 {[%clk 0:00:15]} 40. Re1 {[%clk 0:00:06]}  Rd4 {[%clk 0:00:13]} 41. c5 {[%clk 0:00:06]}  Kd7 {[%clk 0:00:13]} 42. Rb4 {[%clk 0:00:06]}  Rxb4 {[%clk 0:00:10]} 43. axb4 {[%clk 0:00:07]}  Bd5 {[%clk 0:00:10]} 44. Kf2 {[%clk 0:00:06]}  Kc6 {[%clk 0:00:11]} 45. Ke3 {[%clk 0:00:07]}  Kb5 {[%clk 0:00:12]} 46. Kd4 {[%clk 0:00:07]}  Bf3 {[%clk 0:00:10]} 47. Re3 {[%clk 0:00:07]}  Bg4 {[%clk 0:00:09]} 48. Re8 {[%clk 0:00:06]}  Kxb4 {[%clk 0:00:09]} 49. c6 {[%clk 0:00:06]}  Kb5 {[%clk 0:00:09]} 50. c7 {[%clk 0:00:06]} 1-0


[Site "https://www.chess.com"]

[Event "Titled Tuesday Blitz July 26 Early 2022"]
[White "Pfreundt, Jakob"]
[Black "Tanaka, Taira Tyler"]
[WhiteFideId "12918156"]
[BlackFideId "7002351"]
[WhiteElo "2345"]
[BlackElo "2525"]
[Result "1/2-1/2"]
[Round "11"]
[TimeControl "180+1"]
[Date "2022.07.26"]
[WhiteClock "0:00:09"]
[BlackClock "0:00:09"]

1. Nf3 {[%clk 0:03:00]}  d5 {[%clk 0:02:50]} 2. g3 {[%clk 0:03:00]}  Bg4 {[%clk 0:02:48]} 3. Bg2 {[%clk 0:03:00]}  c6 {[%clk 0:02:48]} 4. h3 {[%clk 0:03:00]}  Bh5 {[%clk 0:02:46]} 5. O-O {[%clk 0:03:01]}  Nd7 {[%clk 0:02:46]} 6. d4 {[%clk 0:03:00]}  e6 {[%clk 0:02:45]} 7. c4 {[%clk 0:03:01]}  Ngf6 {[%clk 0:02:45]} 8. cxd5 {[%clk 0:03:01]}  exd5 {[%clk 0:02:46]} 9. Qb3 {[%clk 0:03:00]}  Qb6 {[%clk 0:02:45]} 10. Qe3+ {[%clk 0:03:01]}  Be7 {[%clk 0:02:42]} 11. Nh4 {[%clk 0:03:01]}  Bg6 {[%clk 0:02:40]} 12. Nc3 {[%clk 0:03:00]}  Qd8 {[%clk 0:02:34]} 13. Nxg6 {[%clk 0:02:59]}  hxg6 {[%clk 0:02:34]} 14. Qd3 {[%clk 0:02:59]}  O-O {[%clk 0:02:33]} 15. Rb1 {[%clk 0:02:58]}  a5 {[%clk 0:02:32]} 16. b3 {[%clk 0:02:58]}  Re8 {[%clk 0:02:28]} 17. Bf4 {[%clk 0:02:56]}  Nf8 {[%clk 0:02:24]} 18. h4 {[%clk 0:02:52]}  Bd6 {[%clk 0:02:23]} 19. Bg5 {[%clk 0:02:44]}  Ne6 {[%clk 0:02:23]} 20. Bd2 {[%clk 0:02:25]}  Qe7 {[%clk 0:02:05]} 21. Bf3 {[%clk 0:02:25]}  Bb4 {[%clk 0:01:55]} 22. Kg2 {[%clk 0:02:20]}  Bxc3 {[%clk 0:01:38]} 23. Bxc3 {[%clk 0:02:18]}  g5 {[%clk 0:01:38]} 24. e3 {[%clk 0:01:55]}  gxh4 {[%clk 0:01:07]} 25. gxh4 {[%clk 0:01:56]}  g6 {[%clk 0:01:05]} 26. Rh1 {[%clk 0:01:53]}  Nh5 {[%clk 0:01:03]} 27. Bxh5 {[%clk 0:01:50]}  gxh5 {[%clk 0:01:04]} 28. Rbg1 {[%clk 0:01:48]}  Qf6 {[%clk 0:01:01]} 29. Kf1+ {[%clk 0:01:43]}  Kh8 {[%clk 0:00:54]} 30. Qd1 {[%clk 0:01:37]}  Qf5 {[%clk 0:00:51]} 31. Rg3 {[%clk 0:01:16]}  Rg8 {[%clk 0:00:48]} 32. Rhg1 {[%clk 0:01:05]}  Rxg3 {[%clk 0:00:47]} 33. Rxg3 {[%clk 0:01:06]}  Rg8 {[%clk 0:00:47]} 34. Kg2 {[%clk 0:00:44]}  Rxg3+ {[%clk 0:00:33]} 35. Kxg3 {[%clk 0:00:44]}  b6 {[%clk 0:00:31]} 36. Qf3 {[%clk 0:00:42]}  Qg6+ {[%clk 0:00:31]} 37. Kh2 {[%clk 0:00:41]}  Ng7 {[%clk 0:00:31]} 38. b4 {[%clk 0:00:31]}  a4 {[%clk 0:00:27]} 39. b5 {[%clk 0:00:31]}  cxb5 {[%clk 0:00:27]} 40. Qxd5 {[%clk 0:00:31]}  Nf5 {[%clk 0:00:25]} 41. Qe5+ {[%clk 0:00:30]}  Kh7 {[%clk 0:00:25]} 42. d5 {[%clk 0:00:29]}  Qg4 {[%clk 0:00:09]} 43. Qh8+ {[%clk 0:00:21]}  Kg6 {[%clk 0:00:08]} 44. Qg8+ {[%clk 0:00:22]}  Kh6 {[%clk 0:00:09]} 45. Qh8+ {[%clk 0:00:20]}  Kg6 {[%clk 0:00:09]} 46. Qg8+ {[%clk 0:00:21]}  Kh6 {[%clk 0:00:09]} 47. Qf8+ {[%clk 0:00:17]}  Kg6 {[%clk 0:00:09]} 48. Qg8+ {[%clk 0:00:09]} 1/2-1/2


[Site "https://www.chess.com"]

[Event "Titled Tuesday Blitz July 26 Early 2022"]
[White "Polster, Christian"]
[Black "Ljukin, Sergei"]
[WhiteFideId "12965081"]
[BlackFideId "14102200"]
[WhiteElo "2259"]
[BlackElo "2312"]
[Result "1/2-1/2"]
[Round "11"]
[TimeControl "180+1"]
[Date "2022.07.27"]
[WhiteClock "0:00:11"]
[BlackClock "0:00:10"]

1. e4 {[%clk 0:03:00]}  e6 {[%clk 0:02:57]} 2. d4 {[%clk 0:02:51]}  d5 {[%clk 0:02:57]} 3. Nc3 {[%clk 0:02:52]}  Bb4 {[%clk 0:02:57]} 4. e5 {[%clk 0:02:46]}  Ne7 {[%clk 0:02:57]} 5. a3 {[%clk 0:02:46]}  Bxc3+ {[%clk 0:02:57]} 6. bxc3 {[%clk 0:02:47]}  c5 {[%clk 0:02:57]} 7. Qg4 {[%clk 0:02:47]}  Qc7 {[%clk 0:02:57]} 8. Qxg7 {[%clk 0:02:48]}  Rg8 {[%clk 0:02:57]} 9. Qxh7 {[%clk 0:02:48]}  cxd4 {[%clk 0:02:57]} 10. Ne2 {[%clk 0:02:49]}  Nbc6 {[%clk 0:02:57]} 11. f4 {[%clk 0:02:49]}  Bd7 {[%clk 0:02:57]} 12. Qd3 {[%clk 0:02:49]}  dxc3 {[%clk 0:02:57]} 13. Nxc3 {[%clk 0:02:49]}  Qa5 {[%clk 0:02:57]} 14. Bd2 {[%clk 0:02:48]}  Nb4 {[%clk 0:02:54]} 15. axb4 {[%clk 0:02:38]}  Qxa1+ {[%clk 0:02:54]} 16. Kf2 {[%clk 0:02:38]}  a6 {[%clk 0:02:46]} 17. h4 {[%clk 0:02:27]}  Rc8 {[%clk 0:02:29]} 18. h5 {[%clk 0:02:20]}  Qb2 {[%clk 0:02:20]} 19. h6 {[%clk 0:02:04]}  Qxb4 {[%clk 0:02:13]} 20. Nxd5 {[%clk 0:01:45]}  Qc5+ {[%clk 0:02:06]} 21. Ne3 {[%clk 0:01:44]}  Nf5 {[%clk 0:01:59]} 22. h7 {[%clk 0:01:40]}  Rh8 {[%clk 0:01:58]} 23. g4 {[%clk 0:01:33]}  Bb5 {[%clk 0:01:51]} 24. Qb3 {[%clk 0:01:15]}  Nxe3 {[%clk 0:01:46]} 25. Bxb5+ {[%clk 0:01:06]}  axb5 {[%clk 0:01:40]} 26. Bxe3 {[%clk 0:01:05]}  Qxc2+ {[%clk 0:01:39]} 27. Qxc2 {[%clk 0:01:05]}  Rxc2+ {[%clk 0:01:38]} 28. Kf3 {[%clk 0:01:06]}  b4 {[%clk 0:01:30]} 29. f5 {[%clk 0:01:05]}  exf5 {[%clk 0:01:19]} 30. Bg5 {[%clk 0:00:58]}  fxg4+ {[%clk 0:01:09]} 31. Kxg4 {[%clk 0:00:49]}  b3 {[%clk 0:00:22]} 32. Bf6 {[%clk 0:00:23]}  Rxh7 {[%clk 0:00:21]} 33. Rxh7 {[%clk 0:00:23]}  b2 {[%clk 0:00:21]} 34. e6 {[%clk 0:00:23]}  fxe6 {[%clk 0:00:20]} 35. Rxb7 {[%clk 0:00:20]}  Rf2 {[%clk 0:00:12]} 36. Bxb2 {[%clk 0:00:18]}  Rf5 {[%clk 0:00:12]} 37. Ba3 {[%clk 0:00:16]}  Kd8 {[%clk 0:00:11]} 38. Re7 {[%clk 0:00:12]}  Ra5 {[%clk 0:00:10]} 39. Bd6 {[%clk 0:00:10]}  Rd5 {[%clk 0:00:10]} 40. Rxe6 {[%clk 0:00:10]}  Kd7 {[%clk 0:00:10]} 41. Rg6 {[%clk 0:00:10]}  Rxd6 {[%clk 0:00:10]} 42. Rxd6+ {[%clk 0:00:11]}  Kxd6 {[%clk 0:00:10]} 1/2-1/2


[Site "https://www.chess.com"]

[Event "Titled Tuesday Blitz July 26 Early 2022"]
[White "Pranav, V"]
[Black "Jaskolka, Tomasz"]
[WhiteFideId "25060783"]
[BlackFideId "1170791"]
[WhiteElo "2380"]
[BlackElo "2073"]
[Result "1-0"]
[Round "11"]
[TimeControl "180+1"]
[Date "2022.07.26"]
[WhiteClock "0:01:41"]
[BlackClock "0:00:20"]

1. d4 {[%clk 0:03:00]}  d5 {[%clk 0:02:58]} 2. Bg5 {[%clk 0:03:00]}  c6 {[%clk 0:02:58]} 3. Nf3 {[%clk 0:03:00]}  Qb6 {[%clk 0:02:58]} 4. b3 {[%clk 0:02:59]}  Bf5 {[%clk 0:02:58]} 5. e3 {[%clk 0:02:59]}  e6 {[%clk 0:02:58]} 6. Be2 {[%clk 0:02:58]}  Nd7 {[%clk 0:02:59]} 7. O-O {[%clk 0:02:59]}  h6 {[%clk 0:02:59]} 8. Bh4 {[%clk 0:02:59]}  Ngf6 {[%clk 0:03:00]} 9. c4 {[%clk 0:02:58]}  Be7 {[%clk 0:02:59]} 10. Nc3 {[%clk 0:02:59]}  O-O {[%clk 0:02:59]} 11. Rc1 {[%clk 0:02:58]}  Rac8 {[%clk 0:02:55]} 12. Bg3 {[%clk 0:02:56]}  Ne4 {[%clk 0:02:53]} 13. Nxe4 {[%clk 0:02:54]}  Bxe4 {[%clk 0:02:54]} 14. Bd3 {[%clk 0:02:55]}  Bxd3 {[%clk 0:02:49]} 15. Qxd3 {[%clk 0:02:56]}  dxc4 {[%clk 0:02:49]} 16. bxc4 {[%clk 0:02:56]}  Qa5 {[%clk 0:02:41]} 17. Rb1 {[%clk 0:02:53]}  b6 {[%clk 0:02:35]} 18. Nd2 {[%clk 0:02:52]}  Qh5 {[%clk 0:02:34]} 19. a4 {[%clk 0:02:51]}  Rfd8 {[%clk 0:02:30]} 20. Qc3 {[%clk 0:02:48]}  a5 {[%clk 0:02:26]} 21. Nf3 {[%clk 0:02:41]}  Bb4 {[%clk 0:02:25]} 22. Qc2 {[%clk 0:02:41]}  f6 {[%clk 0:01:59]} 23. Qe4 {[%clk 0:02:35]}  Kf7 {[%clk 0:01:58]} 24. Rfd1 {[%clk 0:02:35]}  Qg6 {[%clk 0:01:56]} 25. Qxg6+ {[%clk 0:02:34]}  Kxg6 {[%clk 0:01:56]} 26. Kf1 {[%clk 0:02:34]}  Kf7 {[%clk 0:01:55]} 27. Ke2 {[%clk 0:02:35]}  c5 {[%clk 0:01:37]} 28. d5 {[%clk 0:02:34]}  e5 {[%clk 0:01:37]} 29. Nd2 {[%clk 0:02:33]}  f5 {[%clk 0:01:17]} 30. f3 {[%clk 0:02:32]}  g5 {[%clk 0:01:12]} 31. h4 {[%clk 0:02:31]}  f4 {[%clk 0:01:06]} 32. Bf2 {[%clk 0:02:30]}  Bxd2 {[%clk 0:01:04]} 33. Kxd2 {[%clk 0:02:29]}  Rb8 {[%clk 0:01:04]} 34. hxg5 {[%clk 0:02:28]}  hxg5 {[%clk 0:01:04]} 35. Rh1 {[%clk 0:02:29]}  Nf6 {[%clk 0:01:04]} 36. Rh6 {[%clk 0:02:26]}  Kg7 {[%clk 0:01:03]} 37. Rhh1 {[%clk 0:02:23]}  Ne8 {[%clk 0:01:01]} 38. Kd3 {[%clk 0:02:18]}  Nd6 {[%clk 0:01:01]} 39. exf4 {[%clk 0:02:15]}  gxf4 {[%clk 0:00:59]} 40. Rh5 {[%clk 0:02:15]}  Re8 {[%clk 0:00:55]} 41. Rbh1 {[%clk 0:02:10]}  e4+ {[%clk 0:00:54]} 42. fxe4 {[%clk 0:02:07]}  Nxe4 {[%clk 0:00:55]} 43. Be1 {[%clk 0:02:05]}  Nf6 {[%clk 0:00:53]} 44. Rg5+ {[%clk 0:02:04]}  Kf7 {[%clk 0:00:52]} 45. Bd2 {[%clk 0:02:05]}  Re4 {[%clk 0:00:50]} 46. Rf5 {[%clk 0:01:59]}  Rd4+ {[%clk 0:00:49]} 47. Kc2 {[%clk 0:01:48]}  Rxc4+ {[%clk 0:00:38]} 48. Kb3 {[%clk 0:01:46]}  Rd4 {[%clk 0:00:38]} 49. Bxf4 {[%clk 0:01:41]}  Rg8 {[%clk 0:00:20]} 50. Be5 {[%clk 0:01:40]}  Rb4+ {[%clk 0:00:20]} 51. Kc3 {[%clk 0:01:39]}  Rg6 {[%clk 0:00:18]} 52. Rhf1 {[%clk 0:01:37]}  Rxa4 {[%clk 0:00:19]} 53. Rxf6+ {[%clk 0:01:37]}  Rxf6 {[%clk 0:00:19]} 54. Rxf6+ {[%clk 0:01:38]}  Ke7 {[%clk 0:00:20]} 55. Rxb6 {[%clk 0:01:39]}  Rg4 {[%clk 0:00:20]} 56. Rb7+ {[%clk 0:01:39]}  Kd8 {[%clk 0:00:20]} 57. d6 {[%clk 0:01:39]}  Rxg2 {[%clk 0:00:19]} 58. Bf6+ {[%clk 0:01:37]}  Kc8 {[%clk 0:00:19]} 59. d7+ {[%clk 0:01:38]}  Kxb7 {[%clk 0:00:19]} 60. d8=Q {[%clk 0:01:39]}  Rg3+ {[%clk 0:00:20]} 61. Kc4 {[%clk 0:01:40]}  Rg4+ {[%clk 0:00:20]} 62. Kb5 {[%clk 0:01:40]}  Rb4+ {[%clk 0:00:21]} 63. Kxa5 {[%clk 0:01:40]}  c4 {[%clk 0:00:20]} 64. Qd7+ {[%clk 0:01:40]}  Ka8 {[%clk 0:00:20]} 65. Qc8+ {[%clk 0:01:40]}  Ka7 {[%clk 0:00:20]} 66. Bd4+ {[%clk 0:01:41]}  Rb6 {[%clk 0:00:20]} 67. Bxb6# {[%clk 0:01:41]} 1-0


[Site "https://www.chess.com"]

[Event "Titled Tuesday Blitz July 26 Early 2022"]
[White "Sanchez, Robert"]
[Black "Lakshmi C"]
[WhiteFideId "2034360"]
[BlackFideId "25035347"]
[WhiteElo "2280"]
[BlackElo "1775"]
[Result "0-1"]
[Round "11"]
[TimeControl "180+1"]
[Date "2022.07.27"]
[WhiteClock "0:00:08"]
[BlackClock "0:00:02"]

1. e4 {[%clk 0:03:00]}  e5 {[%clk 0:02:56]} 2. Nf3 {[%clk 0:03:00]}  Nc6 {[%clk 0:02:56]} 3. Bb5 {[%clk 0:03:01]}  a6 {[%clk 0:02:55]} 4. Ba4 {[%clk 0:03:01]}  d6 {[%clk 0:02:55]} 5. c3 {[%clk 0:03:00]}  Bd7 {[%clk 0:02:54]} 6. d4 {[%clk 0:02:58]}  b5 {[%clk 0:02:53]} 7. Bb3 {[%clk 0:02:58]}  Be7 {[%clk 0:02:53]} 8. O-O {[%clk 0:02:58]}  Nf6 {[%clk 0:02:52]} 9. Re1 {[%clk 0:02:58]}  O-O {[%clk 0:02:52]} 10. h3 {[%clk 0:02:58]}  Re8 {[%clk 0:02:47]} 11. a4 {[%clk 0:02:53]}  h6 {[%clk 0:02:45]} 12. Na3 {[%clk 0:02:51]}  exd4 {[%clk 0:02:42]} 13. cxd4 {[%clk 0:02:51]}  Na5 {[%clk 0:02:41]} 14. Bc2 {[%clk 0:02:51]}  b4 {[%clk 0:02:33]} 15. Nb1 {[%clk 0:02:49]}  c5 {[%clk 0:02:13]} 16. e5 {[%clk 0:02:42]}  dxe5 {[%clk 0:02:11]} 17. dxe5 {[%clk 0:02:37]}  Nh7 {[%clk 0:02:07]} 18. Qe2 {[%clk 0:02:28]}  Be6 {[%clk 0:01:53]} 19. Nbd2 {[%clk 0:02:23]}  c4 {[%clk 0:01:48]} 20. Ne4 {[%clk 0:02:20]}  b3 {[%clk 0:01:41]} 21. Bb1 {[%clk 0:02:18]}  Nc6 {[%clk 0:01:40]} 22. Rd1 {[%clk 0:02:15]}  Qc7 {[%clk 0:01:34]} 23. Nd6 {[%clk 0:02:11]}  Bxd6 {[%clk 0:01:31]} 24. exd6 {[%clk 0:02:09]}  Qd7 {[%clk 0:01:22]} 25. Qe4 {[%clk 0:01:59]}  Nf6 {[%clk 0:01:18]} 26. Qh4 {[%clk 0:01:58]}  Nd5 {[%clk 0:01:06]} 27. Be4 {[%clk 0:01:50]}  Ncb4 {[%clk 0:01:03]} 28. Bxh6 {[%clk 0:01:37]}  gxh6 {[%clk 0:01:00]} 29. Qxh6 {[%clk 0:01:38]}  f5 {[%clk 0:01:00]} 30. Bxd5 {[%clk 0:01:30]}  Nxd5 {[%clk 0:00:54]} 31. Ng5 {[%clk 0:01:29]}  Nf4 {[%clk 0:00:32]} 32. Re1 {[%clk 0:01:08]}  Qg7 {[%clk 0:00:27]} 33. Qh4 {[%clk 0:01:08]}  Ng6 {[%clk 0:00:21]} 34. Qh5 {[%clk 0:01:00]}  Bd7 {[%clk 0:00:21]} 35. Qf3 {[%clk 0:00:47]}  Ne5 {[%clk 0:00:18]} 36. Qd5+ {[%clk 0:00:39]}  Kh8 {[%clk 0:00:18]} 37. Rxe5 {[%clk 0:00:30]}  Qxg5 {[%clk 0:00:14]} 38. Rae1 {[%clk 0:00:30]}  Rg8 {[%clk 0:00:13]} 39. Re7 {[%clk 0:00:25]}  Rad8 {[%clk 0:00:11]} 40. g3 {[%clk 0:00:18]}  f4 {[%clk 0:00:10]} 41. Qd4+ {[%clk 0:00:15]}  Rg7 {[%clk 0:00:08]} 42. h4 {[%clk 0:00:14]}  Qg4 {[%clk 0:00:07]} 43. R1e4 {[%clk 0:00:13]}  Rf8 {[%clk 0:00:05]} 44. Rxd7 {[%clk 0:00:11]}  Qxd7 {[%clk 0:00:04]} 45. Re7 {[%clk 0:00:10]}  Qg4 {[%clk 0:00:02]} 46. d7 {[%clk 0:00:08]}  fxg3 {[%clk 0:00:02]} 47. Qxg4 {[%clk 0:00:07]}  Rxg4 {[%clk 0:00:02]} 48. Re8 {[%clk 0:00:07]}  gxf2+ {[%clk 0:00:01]} 49. Kf1 {[%clk 0:00:08]}  Rg1+ {[%clk 0:00:02]} 50. Ke2 {[%clk 0:00:08]}  f1=Q+ {[%clk 0:00:02]} 0-1


[Site "https://www.chess.com"]

[Event "Titled Tuesday Blitz July 26 Early 2022"]
[White "Sarana, Alexey"]
[Black "Martinez Alcantara, Jose Eduardo"]
[WhiteFideId "24133795"]
[BlackFideId "3805662"]
[WhiteElo "2666"]
[BlackElo "2703"]
[Result "1-0"]
[Round "11"]
[TimeControl "180+1"]
[Date "2022.07.26"]
[WhiteClock "0:00:12"]
[BlackClock "0:00:07"]

1. d4 {[%clk 0:03:00]}  Nf6 {[%clk 0:03:00]} 2. c4 {[%clk 0:03:01]}  e6 {[%clk 0:03:01]} 3. Nc3 {[%clk 0:03:01]}  Bb4 {[%clk 0:03:01]} 4. Qc2 {[%clk 0:03:01]}  d5 {[%clk 0:03:00]} 5. a3 {[%clk 0:02:59]}  Bxc3+ {[%clk 0:02:59]} 6. Qxc3 {[%clk 0:02:59]}  Ne4 {[%clk 0:02:55]} 7. Qc2 {[%clk 0:02:56]}  c5 {[%clk 0:02:56]} 8. dxc5 {[%clk 0:02:41]}  Nc6 {[%clk 0:02:56]} 9. Nf3 {[%clk 0:02:39]}  Qa5+ {[%clk 0:02:56]} 10. Bd2 {[%clk 0:02:39]}  Qxc5 {[%clk 0:02:54]} 11. e3 {[%clk 0:02:37]}  Nxd2 {[%clk 0:02:53]} 12. Nxd2 {[%clk 0:02:31]}  O-O {[%clk 0:02:52]} 13. Be2 {[%clk 0:02:30]}  dxc4 {[%clk 0:02:49]} 14. Qxc4 {[%clk 0:02:27]}  Qxc4 {[%clk 0:02:49]} 15. Nxc4 {[%clk 0:02:28]}  Bd7 {[%clk 0:02:43]} 16. Rd1 {[%clk 0:02:24]}  Rfd8 {[%clk 0:02:41]} 17. Bf3 {[%clk 0:02:24]}  Rab8 {[%clk 0:02:34]} 18. b4 {[%clk 0:02:21]}  Ne7 {[%clk 0:02:11]} 19. Na5 {[%clk 0:02:03]}  Bc6 {[%clk 0:01:27]} 20. Rxd8+ {[%clk 0:01:40]}  Rxd8 {[%clk 0:01:26]} 21. Bxc6 {[%clk 0:01:37]}  Nxc6 {[%clk 0:01:19]} 22. Nxc6 {[%clk 0:01:21]}  bxc6 {[%clk 0:01:20]} 23. Ke2 {[%clk 0:01:22]}  Kf8 {[%clk 0:01:13]} 24. Rc1 {[%clk 0:01:22]}  Rc8 {[%clk 0:01:14]} 25. Kd3 {[%clk 0:01:18]}  Ke7 {[%clk 0:01:14]} 26. Rc5 {[%clk 0:01:17]}  Kd6 {[%clk 0:01:08]} 27. Ra5 {[%clk 0:01:17]}  Rc7 {[%clk 0:01:08]} 28. f4 {[%clk 0:01:10]}  f6 {[%clk 0:00:58]} 29. Kc4 {[%clk 0:01:07]}  e5 {[%clk 0:00:38]} 30. fxe5+ {[%clk 0:01:07]}  fxe5 {[%clk 0:00:39]} 31. Kd3 {[%clk 0:01:01]}  Rf7 {[%clk 0:00:33]} 32. g4 {[%clk 0:01:01]}  g6 {[%clk 0:00:32]} 33. h4 {[%clk 0:00:49]}  Re7 {[%clk 0:00:20]} 34. Ke4 {[%clk 0:00:43]}  h6 {[%clk 0:00:20]} 35. Ra6 {[%clk 0:00:41]}  Rb7 {[%clk 0:00:20]} 36. Ra4 {[%clk 0:00:33]}  Rf7 {[%clk 0:00:17]} 37. Ra6 {[%clk 0:00:24]}  Rb7 {[%clk 0:00:17]} 38. g5 {[%clk 0:00:24]}  h5 {[%clk 0:00:17]} 39. Ra5 {[%clk 0:00:24]}  Re7 {[%clk 0:00:17]} 40. Rc5 {[%clk 0:00:24]}  Re8 {[%clk 0:00:13]} 41. Rc1 {[%clk 0:00:23]}  a5 {[%clk 0:00:10]} 42. Rf1 {[%clk 0:00:16]}  axb4 {[%clk 0:00:10]} 43. axb4 {[%clk 0:00:16]}  Re6 {[%clk 0:00:08]} 44. Rf7 {[%clk 0:00:14]}  Re8 {[%clk 0:00:06]} 45. Rg7 {[%clk 0:00:10]}  Re6 {[%clk 0:00:06]} 46. Kd3 {[%clk 0:00:11]}  c5 {[%clk 0:00:02]} 47. b5 {[%clk 0:00:11]}  e4+ {[%clk 0:00:02]} 48. Kc4 {[%clk 0:00:11]}  Ke5 {[%clk 0:00:02]} 49. Kxc5 {[%clk 0:00:11]}  Kf5 {[%clk 0:00:02]} 50. Rf7+ {[%clk 0:00:10]}  Kg4 {[%clk 0:00:03]} 51. Rf4+ {[%clk 0:00:10]}  Kg3 {[%clk 0:00:04]} 52. b6 {[%clk 0:00:11]}  Re5+ {[%clk 0:00:04]} 53. Kc6 {[%clk 0:00:11]}  Re6+ {[%clk 0:00:05]} 54. Kb5 {[%clk 0:00:11]}  Re5+ {[%clk 0:00:05]} 55. Ka6 {[%clk 0:00:11]}  Re6 {[%clk 0:00:06]} 56. Ka7 {[%clk 0:00:12]}  Rd6 {[%clk 0:00:07]} 57. b7 {[%clk 0:00:12]} 1-0


[Site "https://www.chess.com"]